bitfinex-derivatives/quotes_BTCF0:USTF0_20260119
["timestamp","ask_amount","ask_price","bid_price","bid_amount"]
[1768838374279,0.03988865,93115.0,93096.0,0.04282464]
[1768838374476,0.010745,93112.0,93094.0,0.08557996]
[1768838374679,0.040745,93112.0,93094.0,0.08557996]
[1768838375182,0.03,93112.0,93095.0,0.07483296]
[1768838375479,0.03,93112.0,93095.0,0.1176576]
[1768838375779,0.03,93112.0,93096.0,0.07483296]
[1768838376795,0.010745,93111.0,93096.0,0.07483296]
[1768838376990,0.040745,93111.0,93096.0,0.07483296]
[1768838378595,0.010746,93108.0,93091.0,0.07483296]
[1768838378789,0.040746,93108.0,93092.0,0.09672]
[1768838379092,0.0506062,93108.0,93094.0,0.0773661]
[1768838379292,0.0206062,93107.0,93094.0,0.0773661]
[1768838379499,0.0098602,93106.0,93094.0,0.0773661]
[1768838379682,0.0398602,93106.0,93093.0,0.0773661]
[1768838379996,0.02029143,93105.0,93089.0,0.00236334]
[1768838380198,0.05029143,93105.0,93089.0,0.00236334]
[1768838380397,0.03954543,93105.0,93090.0,0.010748]
[1768838380587,0.03954543,93105.0,93090.0,0.19089606]
[1768838380901,0.03,93105.0,93090.0,0.19089606]
[1768838383693,0.040746,93105.0,93089.0,0.00236334]
[1768838383893,0.040746,93105.0,93090.0,0.18014806]
[1768838384089,0.18014806,93100.0,93089.0,0.00236334]
[1768838384290,0.21014806,93100.0,93086.0,0.07483296]
[1768838384604,0.03,93100.0,93086.0,0.07483296]
[1768838385898,0.010747,93099.0,93086.0,0.07483296]
[1768838386106,0.05466982,93099.0,93084.0,0.010748]
[1768838386487,0.040747,93099.0,93082.0,0.08622716]
[1768838386691,0.010747,93097.0,93082.0,0.08622716]
[1768838386895,0.03,93097.0,93082.0,0.08622716]
[1768838388205,0.03,93097.0,93084.0,0.010748]
[1768838390208,0.03,93097.0,93085.0,0.07547816]
[1768838398713,0.040747,93097.0,93085.0,0.07547816]
[1768838398908,0.040747,93097.0,93082.0,0.04871385]
[1768838399815,0.03,93097.0,93082.0,0.12729831]
[1768838400112,0.03,93097.0,93083.0,0.07858446]
[1768838400513,0.03,93097.0,93084.0,0.12729831]
[1768838400717,0.03,93097.0,93085.0,0.07858446]
[1768838402620,0.03,93097.0,93085.0,0.12729831]
[1768838402807,0.01310883,93109.0,93092.0,0.12729831]
[1768838402808,0.00016114,93106.0,93092.0,0.12729831]
[1768838403013,0.03016114,93106.0,93094.0,0.12729831]
[1768838405222,0.04090714,93106.0,93094.0,0.12729831]
[1768838405623,0.03016114,93106.0,93094.0,0.12729831]
[1768838406220,0.03016114,93106.0,93095.0,0.04871385]
[1768838406420,0.03016114,93106.0,93096.0,0.04871385]
[1768838406924,0.03016114,93106.0,93095.0,0.07858446]
[1768838407624,0.010746,93105.0,93095.0,0.07858446]
[1768838407922,0.010746,93104.0,93091.0,0.04871385]
[1768838408127,0.040746,93104.0,93091.0,0.04871385]
[1768838408618,0.03,93104.0,93091.0,0.12729831]
[1768838408822,0.040746,93104.0,93091.0,0.12729831]
[1768838409029,0.010747,93097.0,93081.0,0.12729831]
[1768838409321,0.01653377,93087.0,93065.0,0.04871385]
[1768838409511,0.04,93087.0,93069.0,0.0510777]
[1768838409715,0.01635021,93091.0,93072.0,0.01075]
[1768838409926,0.01635021,93090.0,93072.0,0.04871385]
[1768838410129,0.04635021,93090.0,93072.0,0.04871385]
[1768838410321,0.00011631,93089.0,93072.0,0.04871385]
[1768838410628,0.05086431,93089.0,93072.0,0.04871385]
[1768838411028,0.04011631,93089.0,93072.0,0.04871385]
[1768838414317,0.010748,93088.0,93072.0,0.04871385]
[1768838414931,0.010748,93088.0,93071.0,0.07858446]
[1768838415130,0.00011631,93089.0,93071.0,0.07858446]
[1768838415336,0.03011631,93089.0,93071.0,0.07858446]
[1768838415516,0.03011631,93089.0,93072.0,0.05946385]
[1768838415723,0.03011631,93089.0,93072.0,0.13804831]
[1768838415923,0.03011631,93089.0,93073.0,0.04871385]
[1768838417031,0.03011631,93089.0,93073.0,0.05946385]
[1768838417233,0.00011631,93089.0,93075.0,0.010749]
[1768838417427,0.00011631,93089.0,93075.0,0.05946285]
[1768838417834,0.00011631,93089.0,93075.0,0.13804731]
[1768838418035,0.00011631,93089.0,93077.0,0.010749]
[1768838418631,0.00011631,93089.0,93076.0,0.04871385]
[1768838418828,0.00011631,93089.0,93076.0,0.12729831]
[1768838419028,0.00011631,93089.0,93077.0,0.010749]
[1768838420035,0.00011631,93089.0,93074.0,0.05946285]
[1768838420335,0.00011631,93089.0,93076.0,0.010749]
[1768838420636,0.00011631,93089.0,93075.0,0.12729831]
[1768838422140,0.00011631,93089.0,93077.0,0.010749]
[1768838423038,0.00011631,93089.0,93077.0,0.04347496]
[1768838424325,0.00011631,93089.0,93079.0,0.12942503]
[1768838425236,0.0134088,93108.0,93089.0,0.04347496]
[1768838425427,0.12435849,93107.0,93091.0,0.11867603]
[1768838425627,0.03838449,93106.0,93093.0,0.04347496]
[1768838425824,0.010746,93104.0,93093.0,0.04347496]
[1768838426138,0.010746,93102.0,93092.0,0.07520107]
[1768838426327,0.02763849,93101.0,93092.0,0.07520107]
[1768838426528,0.04,93101.0,93086.0,0.07520107]
[1768838426733,0.010747,93096.0,93086.0,0.07520107]
[1768838427032,0.050747,93096.0,93086.0,0.11867603]
[1768838428741,0.04,93096.0,93087.0,0.04347496]
[1768838429243,0.04,93096.0,93088.0,0.04347496]
[1768838430639,0.04,93096.0,93088.0,0.05422296]
[1768838431434,0.09672,93108.0,93090.0,0.04347496]
[1768838431638,0.02720762,93107.0,93091.0,0.11867603]
[1768838431837,0.02720762,93106.0,93096.0,0.010747]
[1768838432039,0.04,93106.0,93096.0,0.010747]
[1768838432547,0.04,93106.0,93092.0,0.11867603]
[1768838432835,0.010746,93105.0,93086.0,0.07520107]
[1768838433041,0.03,93105.0,93091.0,0.010748]
[1768838433426,0.03,93105.0,93097.0,0.010747]
[1768838433628,0.02,93105.0,93101.0,0.07520107]
[1768838433829,0.03,93105.0,93101.0,0.07520107]
[1768838434032,0.09672,93109.0,93101.0,0.07520107]
[1768838434244,0.09672,93109.0,93097.0,0.010747]
[1768838434440,0.09672,93109.0,93096.0,0.04347496]
[1768838435443,0.12672,93109.0,93096.0,0.04347496]
[1768838437448,0.010746,93108.0,93093.0,0.00016114]
[1768838437747,0.040746,93108.0,93093.0,0.00016114]
[1768838437943,0.040746,93108.0,93094.0,0.010747]
[1768838438143,0.09672,93109.0,93094.0,0.010747]
[1768838438343,0.13672,93109.0,93094.0,0.010747]
[1768838438640,0.13672,93109.0,93096.0,0.010747]
[1768838438842,0.06,93128.0,93098.0,0.11867603]
[1768838439145,0.04,93124.0,93114.0,0.04347496]
[1768838439448,0.010743,93130.0,93114.0,0.04347496]
[1768838439645,0.010743,93128.0,93112.0,0.010745]
[1768838439943,0.010743,93128.0,93112.0,0.05064916]
[1768838439944,0.03,93128.0,93112.0,0.05064916]
[1768838440442,0.03,93128.0,93117.0,0.010745]
[1768838441741,0.03,93128.0,93114.0,0.010745]
[1768838442840,0.040743,93128.0,93111.0,0.010745]
[1768838443053,0.040743,93128.0,93113.0,0.010745]
[1768838443640,0.03,93128.0,93113.0,0.010745]
[1768838444849,0.03,93128.0,93115.0,0.010745]
[1768838445941,0.03,93128.0,93112.0,0.010745]
[1768838446549,0.03,93128.0,93112.0,0.06139416]
[1768838446747,0.040743,93128.0,93110.0,0.07436602]
[1768838446950,0.08865819,93128.0,93109.0,0.06139416]
[1768838447150,0.08865819,93128.0,93111.0,0.010745]
[1768838447751,0.010744,93126.0,93109.0,0.05064916]
[1768838448050,0.040744,93126.0,93110.0,0.010745]
[1768838448241,0.040744,93126.0,93110.0,0.06139416]
[1768838448444,0.03,93126.0,93112.0,0.010745]
[1768838449958,0.03,93126.0,93109.0,0.010745]
[1768838450156,0.03,93126.0,93111.0,0.010745]
[1768838450755,0.03,93126.0,93113.0,0.010745]
[1768838451961,0.03,93126.0,93110.0,0.23073317]
[1768838452356,0.17789171,93131.0,93116.0,0.010745]
[1768838452558,0.20789171,93131.0,93116.0,0.010745]
[1768838453563,0.21863471,93131.0,93114.0,0.010745]
[1768838453762,0.26736279,93131.0,93114.0,0.010745]
[1768838453964,0.25661979,93131.0,93110.0,0.23073317]
[1768838454462,0.010743,93130.0,93110.0,0.23073317]
[1768838454658,0.03,93130.0,93114.0,0.010745]
[1768838455463,0.03,93130.0,93116.0,0.010745]
[1768838456658,0.03,93130.0,93114.0,0.010745]
[1768838456858,0.03,93130.0,93110.0,0.23073317]
[1768838457060,0.03,93130.0,93117.0,0.010745]
[1768838457255,0.03,93130.0,93110.0,0.23073317]
[1768838457468,0.03,93130.0,93120.0,0.18008401]
[1768838458566,0.010743,93129.0,93120.0,0.18008401]
[1768838458759,0.040743,93129.0,93120.0,0.18008401]
[1768838459171,0.040743,93129.0,93114.0,0.010745]
[1768838459368,0.12900843,93122.0,93106.0,0.010746]
[1768838459685,0.04872808,93118.0,93106.0,0.010746]
[1768838459884,0.03,93118.0,93106.0,0.010746]
[1768838461284,0.03,93118.0,93105.0,0.010746]
[1768838461475,0.04872808,93122.0,93109.0,0.010745]
[1768838461674,0.07872808,93122.0,93109.0,0.010745]
[1768838461883,0.08947208,93122.0,93109.0,0.010745]
[1768838462480,0.04872808,93110.0,93092.0,0.09672]
[1768838462679,0.08947408,93110.0,93096.0,0.010747]
[1768838462880,0.07872808,93110.0,93096.0,0.010747]
[1768838463274,0.03,93110.0,93100.0,0.16931861]
[1768838463581,0.03,93110.0,93100.0,0.12867965]
[1768838463883,0.08028035,93111.0,93100.0,0.13942665]
[1768838464069,0.13975343,93117.0,93102.0,0.010746]
[1768838464274,0.17975343,93117.0,93102.0,0.010746]
[1768838464473,0.17975343,93117.0,93100.0,0.12867965]
[1768838464878,0.17975343,93117.0,93101.0,0.010746]
[1768838465874,0.16900843,93117.0,93103.0,0.010746]
[1768838467283,0.16900843,93117.0,93100.0,0.12867965]
[1768838467582,0.010745,93116.0,93101.0,0.010746]
[1768838467779,0.050745,93116.0,93101.0,0.010746]
[1768838468079,0.010745,93114.0,93100.0,0.12867965]
[1768838468276,0.050745,93114.0,93100.0,0.12867965]
[1768838468987,0.04,93114.0,93101.0,0.010746]
[1768838469185,0.08872808,93114.0,93101.0,0.010746]
[1768838469986,0.08872808,93114.0,93104.0,0.010746]
[1768838470482,0.04872808,93110.0,93090.0,0.18008401]
[1768838470676,0.04872808,93109.0,93099.0,0.010747]
[1768838470876,0.13900843,93109.0,93099.0,0.010747]
[1768838471287,0.13900843,93109.0,93091.0,0.010748]
[1768838471781,0.04872808,93104.0,93091.0,0.010747]
[1768838471982,0.04872808,93100.0,93091.0,0.010748]
[1768838472181,0.16900843,93100.0,93089.0,0.00236334]
[1768838472485,0.04872808,93096.0,93078.0,0.107469]
[1768838472687,0.07872808,93096.0,93080.0,0.18008401]
[1768838473279,0.07872808,93096.0,93087.0,0.010748]
[1768838473782,0.03,93096.0,93087.0,0.010748]
[1768838473980,0.04872808,93088.0,93071.0,0.01075]
[1768838474179,0.04872808,93088.0,93070.0,0.18008401]
[1768838474180,0.08028035,93089.0,93079.0,0.010749]
[1768838474484,0.08028035,93089.0,93075.0,0.01479671]
[1768838474688,0.04872808,93091.0,93080.0,0.010749]
[1768838474988,0.08028035,93094.0,93080.0,0.18008401]
[1768838475183,0.08028035,93094.0,93086.0,0.010748]
[1768838478987,0.08028035,93094.0,93080.0,0.18008401]
[1768838479192,0.08028035,93094.0,93084.0,0.010748]
[1768838479392,0.08028035,93094.0,93081.0,0.010749]
[1768838479589,0.08028035,93094.0,93083.0,0.010748]
[1768838480494,0.08028035,93094.0,93085.0,0.010748]
[1768838480692,0.12900843,93089.0,93069.0,0.00236385]
[1768838480889,0.12900843,93089.0,93070.0,0.18008401]
[1768838481991,0.08028035,93095.0,93079.0,0.010749]
[1768838482192,0.04872808,93094.0,93079.0,0.010749]
[1768838482397,0.04872808,93094.0,93081.0,0.010749]
[1768838482592,0.04872808,93092.0,93077.0,0.010749]
[1768838482898,0.05353422,93090.0,93077.0,0.010749]
[1768838483098,0.06353422,93090.0,93077.0,0.010749]
[1768838483601,0.06353422,93090.0,93070.0,0.23422804]
[1768838483899,0.01,93090.0,93072.0,0.05414403]
[1768838484192,0.01,93090.0,93073.0,0.05414403]
[1768838484400,0.01,93090.0,93077.0,0.010749]
[1768838484696,0.01,93090.0,93080.0,0.18008401]
[1768838484889,0.05353422,93094.0,93080.0,0.18008401]
[1768838485283,0.05353422,93094.0,93083.0,0.010748]
[1768838485601,0.09672,93097.0,93087.0,0.05414403]
[1768838485794,0.11672,93097.0,93087.0,0.18008401]
[1768838485988,0.11672,93097.0,93082.0,0.05414403]
[1768838486183,0.11672,93097.0,93085.0,0.010748]
[1768838487297,0.11672,93097.0,93086.0,0.010748]
[1768838487495,0.11672,93097.0,93080.0,0.18008401]
[1768838487690,0.11672,93097.0,93091.0,0.010748]
[1768838487898,0.09672,93104.0,93087.0,0.18008401]
[1768838488194,0.11672,93104.0,93097.0,0.010747]
[1768838488697,0.09672,93108.0,93101.0,0.010746]
[1768838488999,0.00236283,93109.0,93099.0,0.18008401]
[1768838489388,0.09672,93117.0,93103.0,0.010746]
[1768838489694,0.05353422,93120.0,93109.0,0.010745]
[1768838489883,0.06353422,93120.0,93109.0,0.010745]
[1768838490498,0.06353422,93120.0,93101.0,0.05414403]
[1768838490901,0.06353422,93120.0,93100.0,0.18008401]
[1768838490902,0.05353422,93119.0,93100.0,0.18008401]
[1768838491203,0.05353422,93118.0,93105.0,0.010746]
[1768838491404,0.14029113,93118.0,93105.0,0.010746]
[1768838491700,0.05353422,93117.0,93105.0,0.010746]
[1768838492092,0.05353422,93117.0,93107.0,0.010746]
[1768838492896,0.06353422,93117.0,93101.0,0.010746]
[1768838493092,0.06353422,93117.0,93100.0,0.18008401]
[1768838493292,0.06353422,93117.0,93106.0,0.010746]
[1768838493798,0.05353422,93117.0,93108.0,0.010746]
[1768838494099,0.08675691,93118.0,93100.0,0.18008401]
[1768838494400,0.08675691,93118.0,93100.0,0.23422804]
[1768838495001,0.18029113,93118.0,93104.0,0.010746]
[1768838495204,0.05353422,93117.0,93104.0,0.010746]
[1768838495705,0.15029113,93117.0,93104.0,0.010746]
[1768838495894,0.05353422,93116.0,93104.0,0.010746]
[1768838496095,0.06353422,93116.0,93104.0,0.010746]
[1768838496397,0.06353422,93116.0,93101.0,0.010746]
[1768838496701,0.05353422,93115.0,93101.0,0.010746]
[1768838496902,0.06353422,93115.0,93101.0,0.010746]
[1768838497705,0.03716061,93107.0,93093.0,0.010747]
[1768838497889,0.03716061,93098.0,93089.0,0.010748]
[1768838498094,0.03716061,93098.0,93083.0,0.09672]
[1768838498496,0.03716061,93098.0,93089.0,0.010748]
[1768838498690,0.04780308,93102.0,93093.0,0.010747]
[1768838499008,0.13455999,93105.0,93093.0,0.010747]
[1768838499408,0.04780308,93101.0,93087.0,0.010748]
[1768838499598,0.04780308,93101.0,93089.0,0.00236334]
[1768838499906,0.04780308,93101.0,93091.0,0.010748]
[1768838500107,0.08675691,93102.0,93090.0,0.18008401]
[1768838500810,0.08675691,93102.0,93095.0,0.010747]
[1768838501407,0.08675691,93102.0,93090.0,0.18008401]
[1768838501609,0.08675691,93102.0,93096.0,0.010747]
[1768838502701,0.08675691,93102.0,93093.0,0.010747]
[1768838502906,0.08675691,93102.0,93095.0,0.010747]
[1768838504809,0.08675691,93102.0,93090.0,0.18008401]
[1768838505403,0.08675691,93102.0,93089.0,0.00236334]
[1768838505602,0.04823281,93105.0,93097.0,0.010747]
[1768838505801,0.04412858,93121.0,93107.0,0.010746]
[1768838506109,0.04412858,93121.0,93100.0,0.15589944]
[1768838506110,0.09672,93117.0,93109.0,0.010745]
[1768838506506,0.09672,93117.0,93107.0,0.010746]
[1768838506899,0.13672,93117.0,93107.0,0.010746]
[1768838507106,0.1804559,93117.0,93107.0,0.010746]
[1768838508200,0.05249944,93116.0,93107.0,0.010746]
[1768838508500,0.05249944,93115.0,93107.0,0.010746]
[1768838508699,0.06282092,93112.0,93090.0,0.33598345]
[1768838508894,0.05207592,93112.0,93091.0,0.15589944]
[1768838509404,0.06282092,93112.0,93097.0,0.010747]
[1768838510001,0.06282092,93112.0,93091.0,0.15589944]
[1768838510702,0.05207592,93112.0,93100.0,0.010746]
[1768838511408,0.05207592,93112.0,93090.0,0.18008401]
[1768838511409,0.05170335,93108.0,93097.0,0.010747]
[1768838511607,0.04116492,93104.0,93094.0,0.010747]
[1768838511913,0.03880158,93097.0,93080.0,0.18008401]
[1768838512205,0.08645148,93105.0,93082.0,0.010749]
[1768838512404,0.08645148,93105.0,93082.0,0.16664844]
[1768838512606,0.08645148,93105.0,93092.0,0.010747]
[1768838513011,0.09719748,93105.0,93091.0,0.010748]
[1768838513209,0.08645148,93105.0,93091.0,0.010748]
[1768838513508,0.08645148,93105.0,93082.0,0.16664844]
[1768838513509,0.02440468,93104.0,93093.0,0.010747]
[1768838513710,0.02440468,93103.0,93093.0,0.010747]
[1768838513909,0.08645148,93105.0,93095.0,0.010747]
[1768838514109,0.02440469,93104.0,93095.0,0.010747]
[1768838514310,0.02440469,93103.0,93095.0,0.010747]
[1768838514502,0.08645148,93105.0,93095.0,0.010747]
[1768838514704,0.0244078,93104.0,93095.0,0.010747]
[1768838517316,0.02441389,93104.0,93091.0,0.010747]
[1768838517614,0.08645148,93105.0,93090.0,0.010748]
[1768838517814,0.02441701,93104.0,93090.0,0.010748]
[1768838518118,0.010746,93104.0,93085.0,0.09412285]
[1768838518609,0.08645148,93105.0,93085.0,0.09412285]
[1768838518812,0.02441712,93104.0,93085.0,0.09412285]
[1768838519112,0.08645148,93105.0,93090.0,0.010748]
[1768838519314,0.010746,93103.0,93088.0,0.010748]
[1768838519510,0.09719748,93105.0,93085.0,0.09412285]
[1768838519707,0.02441562,93104.0,93089.0,0.010748]
[1768838519909,0.010746,93103.0,93088.0,0.010748]
[1768838520711,0.010746,93103.0,93089.0,0.010748]
[1768838520909,0.10150395,93103.0,93089.0,0.010748]
[1768838521310,0.010746,93101.0,93089.0,0.010748]
[1768838521511,0.10150395,93103.0,93089.0,0.010748]
[1768838521707,0.010746,93105.0,93092.0,0.010747]
[1768838521919,0.09672,93123.0,93103.0,0.16016245]
[1768838522116,0.09672,93123.0,93090.0,0.18019056]
[1768838522117,0.09672,93123.0,93113.0,0.010745]
[1768838522419,0.09672,93123.0,93117.0,0.010745]
[1768838522624,0.09672,93123.0,93118.0,0.010744]
[1768838524022,0.09908233,93129.0,93120.0,0.010744]
[1768838524316,0.09908233,93129.0,93115.0,0.16016245]
[1768838524514,0.09908233,93129.0,93122.0,0.010744]
[1768838525414,0.09672,93136.0,93121.0,0.16016245]
[1768838526118,0.09672,93136.0,93122.0,0.010744]
[1768838526920,0.09672,93136.0,93124.0,0.010744]
[1768838527417,0.09672,93136.0,93126.0,0.010743]
[1768838527720,0.10982393,93144.0,93127.0,0.010743]
[1768838528715,0.010742,93141.0,93125.0,0.16016245]
[1768838529022,0.10982393,93144.0,93127.0,0.010743]
[1768838529221,0.010742,93142.0,93125.0,0.09412285]
[1768838529417,0.010692,93142.0,93126.0,0.010744]
[1768838529923,0.010692,93142.0,93128.0,0.010743]
[1768838530114,0.09908193,93144.0,93128.0,0.010743]
[1768838531324,0.010742,93143.0,93128.0,0.010743]
[1768838531524,0.010742,93143.0,93127.0,0.010743]
[1768838532522,0.09908193,93144.0,93129.0,0.010743]
[1768838532722,0.09908193,93144.0,93131.0,0.010743]
[1768838533223,0.09908193,93144.0,93133.0,0.010743]
[1768838533824,0.09908193,93144.0,93130.0,0.010743]
[1768838534326,0.09908193,93144.0,93132.0,0.010743]
[1768838534527,0.02363413,93143.0,93132.0,0.010743]
[1768838534829,0.09908193,93144.0,93132.0,0.010743]
[1768838535123,0.09908193,93144.0,93127.0,0.0660396]
[1768838535124,0.09908193,93144.0,93134.0,0.010743]
[1768838535911,0.09908193,93144.0,93127.0,0.1742447]
[1768838536117,0.09908193,93144.0,93131.0,0.010743]
[1768838537123,0.09908193,93144.0,93128.0,0.16016245]
[1768838537324,0.09908193,93144.0,93131.0,0.16016245]
[1768838537628,0.010742,93143.0,93124.0,0.16016245]
[1768838538022,0.10982393,93144.0,93129.0,0.010743]
[1768838539528,0.09908193,93144.0,93131.0,0.010743]
[1768838539930,0.09908193,93144.0,93133.0,0.010743]
[1768838541324,0.09908193,93144.0,93130.0,0.010743]
[1768838542022,0.09908193,93144.0,93132.0,0.010743]
[1768838543330,0.09908193,93144.0,93129.0,0.09412285]
[1768838544033,0.09903193,93144.0,93129.0,0.09412285]
[1768838544632,0.10977393,93144.0,93129.0,0.09412285]
[1768838545627,0.09903193,93144.0,93130.0,0.15683893]
[1768838545933,0.09903193,93144.0,93135.0,0.010742]
[1768838548123,0.09903193,93144.0,93135.0,0.00837967]
[1768838548324,0.09903193,93144.0,93130.0,0.09123895]
[1768838548325,0.09903193,93144.0,93132.0,0.010743]
[1768838548830,0.09903193,93144.0,93130.0,0.09123895]
[1768838549034,0.00231193,93144.0,93131.0,0.06576104]
[1768838549236,0.01310282,93149.0,93133.0,0.16758193]
[1768838549633,0.01310282,93149.0,93134.0,0.010743]
[1768838549834,0.01310282,93149.0,93135.0,0.010742]
[1768838550537,0.02365219,93148.0,93135.0,0.010742]
[1768838550729,0.01310282,93149.0,93137.0,0.010742]
[1768838550929,0.02365219,93148.0,93137.0,0.010742]
[1768838551122,0.02366771,93147.0,93137.0,0.010742]
[1768838551327,0.00236182,93149.0,93139.0,0.010742]
[1768838551527,0.02366771,93148.0,93139.0,0.010742]
[1768838551826,0.02366771,93147.0,93139.0,0.010742]
[1768838552029,0.010741,93148.0,93136.0,0.010742]
[1768838552228,0.02366771,93147.0,93136.0,0.010742]
[1768838552435,0.02366771,93146.0,93133.0,0.10182089]
[1768838552635,0.010741,93145.0,93133.0,0.010743]
[1768838553339,0.010741,93148.0,93135.0,0.010742]
[1768838553531,0.02368308,93147.0,93130.0,0.00016106]
[1768838553839,0.09217932,93136.0,93114.0,0.010745]
[1768838554043,0.09217932,93136.0,93120.0,0.010744]
[1768838554337,0.010742,93137.0,93120.0,0.010744]
[1768838555036,0.107422,93140.0,93119.0,0.01355677]
[1768838555238,0.02369196,93139.0,93117.0,0.06576104]
[1768838555434,0.02369196,93138.0,93117.0,0.06576104]
[1768838555629,0.107422,93140.0,93117.0,0.07929495]
[1768838555835,0.010742,93138.0,93122.0,0.010744]
[1768838556239,0.010742,93136.0,93122.0,0.010744]
[1768838556538,0.09217932,93137.0,93113.0,0.06576104]
[1768838556740,0.010744,93123.0,93109.0,0.010745]
[1768838557042,0.010744,93121.0,93106.0,0.10182389]
[1768838558145,0.00838156,93121.0,93106.0,0.10182389]
[1768838558342,0.010744,93119.0,93106.0,0.09107789]
[1768838558842,0.010744,93122.0,93106.0,0.09107789]
[1768838559144,0.010744,93122.0,93107.0,0.010746]
[1768838560142,0.00016106,93125.0,93109.0,0.15111386]
[1768838560349,0.00016106,93125.0,93112.0,0.08921861]
[1768838560739,0.00016106,93125.0,93113.0,0.06189525]
[1768838561443,0.00016106,93125.0,93113.0,0.07264025]
[1768838561643,6e-08,93125.0,93122.0,0.010744]
[1768838561855,0.08050795,93129.0,93122.0,0.09996261]
[1768838562140,0.09668,93137.0,93123.0,0.15111386]
[1768838562343,0.09668,93137.0,93129.0,0.010743]
[1768838562537,0.09668,93137.0,93128.0,0.010743]
[1768838562733,0.09668,93137.0,93126.0,0.15111386]
[1768838563650,0.09668,93137.0,93131.0,0.010743]
[1768838565148,0.09668,93142.0,93131.0,0.010743]
[1768838565539,0.09668,93142.0,93126.0,0.15111386]
[1768838565737,0.09668,93142.0,93130.0,0.010743]
[1768838566842,0.09668,93142.0,93132.0,0.010743]
[1768838567150,0.107422,93142.0,93128.0,0.010743]
[1768838567347,0.19773101,93142.0,93128.0,0.010743]
[1768838568043,0.010742,93140.0,93127.0,0.010743]
[1768838568243,0.18698901,93142.0,93110.0,0.06189525]
[1768838568244,0.10105201,93134.0,93110.0,0.06189525]
[1768838568450,0.10105201,93132.0,93110.0,0.06189525]
[1768838568754,0.10105201,93132.0,93111.0,0.09668]
[1768838569048,0.09030901,93132.0,93109.0,0.09158144]
[1768838569352,0.010744,93126.0,93110.0,0.010745]
[1768838569547,0.010744,93126.0,93112.0,0.010745]
[1768838569749,0.10105201,93129.0,93112.0,0.010745]
[1768838570043,0.09030901,93129.0,93114.0,0.010745]
[1768838570249,0.09030901,93129.0,93118.0,0.010744]
[1768838570450,0.10105201,93135.0,93120.0,0.010744]
[1768838570942,0.010743,93132.0,93110.0,0.15111386]
[1768838571649,0.010743,93132.0,93117.0,0.010745]
[1768838571852,0.010743,93132.0,93119.0,0.010744]
[1768838572752,0.10105201,93135.0,93119.0,0.010744]
[1768838573747,0.09454637,93130.0,93109.0,0.00236283]
[1768838573960,0.010744,93123.0,93109.0,0.00236283]
[1768838574450,0.010744,93123.0,93110.0,0.18007823]
[1768838575154,0.010744,93126.0,93110.0,0.010745]
[1768838575450,0.010744,93124.0,93110.0,0.010745]
[1768838575955,0.010744,93124.0,93110.0,0.19082323]
[1768838576655,0.18007823,93130.0,93110.0,0.18007823]
[1768838577555,0.010744,93124.0,93109.0,0.01310783]
[1768838578355,0.010744,93122.0,93109.0,0.01310783]
[1768838579453,0.010744,93125.0,93109.0,0.01310783]
[1768838579757,0.010744,93123.0,93109.0,0.00236283]
[1768838579943,0.010744,93123.0,93110.0,0.010745]
[1768838580349,0.010744,93126.0,93110.0,0.010745]
[1768838580550,0.010744,93124.0,93110.0,0.010745]
[1768838581349,0.010744,93127.0,93112.0,0.010745]
[1768838582957,0.010744,93127.0,93114.0,0.010745]
[1768838585557,0.010744,93127.0,93115.0,0.010745]
[1768838585952,0.2853676,93130.0,93117.0,0.010745]
[1768838586360,0.09668,93131.0,93116.0,0.15561569]
[1768838586563,0.09668,93131.0,93109.0,0.00236283]
[1768838586564,0.010742,93139.0,93123.0,0.15561569]
[1768838586747,0.02307379,93138.0,93127.0,0.15561569]
[1768838586948,0.02307379,93137.0,93127.0,0.15561569]
[1768838587155,0.02307379,93136.0,93127.0,0.15561569]
[1768838587361,0.02307379,93135.0,93127.0,0.15561569]
[1768838587553,0.02307379,93134.0,93127.0,0.15561569]
[1768838587753,0.09668,93142.0,93127.0,0.15561569]
[1768838587953,0.02307485,93141.0,93127.0,0.15561569]
[1768838588160,0.02307485,93140.0,93130.0,0.010743]
[1768838588364,0.02307485,93139.0,93127.0,0.15561569]
[1768838588556,0.02307485,93138.0,93127.0,0.15561569]
[1768838588758,0.02307485,93137.0,93127.0,0.15561569]
[1768838589065,0.09668,93142.0,93127.0,0.15561569]
[1768838589258,0.02307465,93141.0,93133.0,0.010743]
[1768838589463,0.02307465,93140.0,93133.0,0.010743]
[1768838589664,0.02307465,93139.0,93133.0,0.010743]
[1768838589864,0.02307465,93138.0,93133.0,0.010743]
[1768838590164,0.09668,93142.0,93133.0,0.010743]
[1768838590371,0.02307565,93141.0,93133.0,0.010743]
[1768838590565,0.02307565,93140.0,93133.0,0.010743]
[1768838590754,0.02307565,93139.0,93133.0,0.010743]
[1768838590957,0.02307565,93138.0,93133.0,0.010743]
[1768838591155,0.09668,93142.0,93133.0,0.010743]
[1768838591455,0.02307708,93141.0,93133.0,0.010743]
[1768838591764,0.02307708,93140.0,93133.0,0.010743]
[1768838591961,0.02307708,93139.0,93133.0,0.010743]
[1768838592163,0.02307708,93138.0,93133.0,0.010743]
[1768838592365,0.09668,93142.0,93133.0,0.010743]
[1768838592562,0.02327096,93141.0,93133.0,0.010743]
[1768838592751,0.09668,93142.0,93133.0,0.010743]
[1768838592752,0.02327096,93140.0,93133.0,0.010743]
[1768838592952,0.02327096,93139.0,93130.0,0.06667073]
[1768838593160,0.09668,93142.0,93129.0,0.010743]
[1768838593360,0.02326978,93141.0,93129.0,0.010743]
[1768838593565,0.02326978,93140.0,93129.0,0.010743]
[1768838593763,0.09668,93142.0,93129.0,0.010743]
[1768838593963,0.02326976,93141.0,93131.0,0.010743]
[1768838594165,0.09668,93142.0,93133.0,0.010743]
[1768838594961,0.09668,93142.0,93130.0,0.08894496]
[1768838594962,0.09668,93142.0,93131.0,0.010743]
[1768838596760,0.09668,93142.0,93130.0,0.15561569]
[1768838596961,0.09668,93142.0,93130.0,0.08894496]
[1768838597360,0.09668,93142.0,93128.0,0.010743]
[1768838597872,0.09668,93142.0,93130.0,0.010743]
[1768838598369,0.00016106,93143.0,93130.0,0.010743]
[1768838598570,0.00016106,93143.0,93131.0,0.010743]
[1768838598967,0.00016106,93143.0,93133.0,0.010743]
[1768838599264,0.00016106,93143.0,93134.0,0.010743]